fUSD/lending_fUSD_20250930
["ID","MTS","AMOUNT","RATE_DAILY","PERIOD"]
[388497380,1759217447585,-361.0,0.00019294,2]
[388497382,1759217447595,-361.0,0.00019294,2]
[388497384,1759217447606,-361.0,0.00019294,2]
[388497386,1759217447617,-361.0,0.00019294,2]
[388497387,1759217447627,-361.0,0.00019294,2]
[388497388,1759217447638,-361.0,0.00019294,2]
[388497389,1759217447648,-361.0,0.00019294,2]
[388497390,1759217447660,-361.0,0.00019294,2]
[388497391,1759217447671,-361.0,0.00019294,2]
[388497392,1759217447683,-361.0,0.00019294,2]
[388497393,1759217447707,-361.0,0.00019294,2]
[388497394,1759217447720,-361.0,0.00019294,2]
[388497395,1759217447731,-361.0,0.00019294,2]
[388497396,1759217447742,-153.0,0.00019294,2]
[388497397,1759217447753,-153.0,0.00019294,2]
[388497398,1759217447763,-153.0,0.00019294,2]
[388497399,1759217447773,-153.0,0.00019294,2]
[388497400,1759217447784,-153.0,0.00019294,2]
[388497401,1759217447794,-153.0,0.00019294,2]
[388497402,1759217447806,-153.0,0.00019294,2]
[388497403,1759217447817,-153.0,0.00019294,2]
[388497404,1759217447827,-153.0,0.00019294,2]
[388497405,1759217447838,-361.0,0.00019294,2]
[388497406,1759217447850,-361.0,0.00019294,2]
[388497407,1759217447861,-361.0,0.00019294,2]
[388497408,1759217447873,-361.0,0.00019294,2]
[388497409,1759217447883,-361.0,0.00019294,2]
[388497410,1759217447895,-361.0,0.00019294,2]
[388497411,1759217447906,-361.0,0.00019294,2]
[388497412,1759217447917,-361.0,0.00019294,2]
[388497413,1759217447927,-361.0,0.00019294,2]
[388497414,1759217447937,-361.0,0.00019294,2]
[388497415,1759217447948,-361.0,0.00019294,2]
[388497416,1759217447959,-361.0,0.00019294,2]
[388497417,1759217447970,-361.0,0.00019294,2]
[388497418,1759217447981,-361.0,0.00019294,2]
[388497419,1759217447992,-153.0,0.00019294,2]
[388497420,1759217448007,-153.0,0.00019294,2]
[388497421,1759217448018,-153.0,0.00019294,2]
[388497422,1759217448029,-153.0,0.00019294,2]
[388497423,1759217448042,-153.0,0.00019294,2]
[388497424,1759217448053,-153.0,0.00019294,2]
[388497425,1759217448064,-153.0,0.00019294,2]
[388497426,1759217448082,-153.0,0.00019294,2]
[388497427,1759217448529,-153.0,0.00019294,2]
[388497428,1759217448540,-361.0,0.00019294,2]
[388497429,1759217448550,-361.0,0.00019294,2]
[388497430,1759217448560,-361.0,0.00019294,2]
[388497431,1759217448570,-361.0,0.00019294,2]
[388497432,1759217448580,-361.0,0.00019294,2]
[388497433,1759217448590,-361.0,0.00019294,2]
[388497434,1759217448600,-361.0,0.00019294,2]
[388497435,1759217448610,-361.0,0.00019294,2]
[388497436,1759217448620,-361.0,0.00019294,2]
[388497437,1759217448630,-361.0,0.00019294,2]
[388497438,1759217448640,-361.0,0.00019294,2]
[388497439,1759217448649,-361.0,0.00019294,2]
[388497440,1759217448660,-361.0,0.00019294,2]
[388497441,1759217448669,-361.0,0.00019294,2]
[388497442,1759217448680,-153.0,0.00019294,2]
[388497443,1759217448690,-153.0,0.00019294,2]
[388497444,1759217448700,-153.0,0.00019294,2]
[388497445,1759217448709,-153.0,0.00019294,2]
[388497446,1759217448719,-153.0,0.00019294,2]
[388497447,1759217448729,-153.0,0.00019294,2]
[388497448,1759217448745,-153.0,0.00019294,2]
[388497449,1759217448755,-153.0,0.00019294,2]
[388497450,1759217448765,-153.0,0.00019294,2]
[388497451,1759217448775,-361.0,0.00019294,2]
[388497452,1759217448785,-361.0,0.00019294,2]
[388497453,1759217448795,-361.0,0.00019294,2]
[388497454,1759217448805,-361.0,0.00019294,2]
[388497455,1759217448815,-361.0,0.00019294,2]
[388497456,1759217448825,-361.0,0.00019294,2]
[388497457,1759217448836,-361.0,0.00019294,2]
[388497458,1759217448846,-361.0,0.00019294,2]
[388497459,1759217448856,-361.0,0.00019294,2]
[388497460,1759217448866,-361.0,0.00019294,2]
[388497461,1759217448876,-361.0,0.00019294,2]
[388497462,1759217448886,-361.0,0.00019294,2]
[388497463,1759217448896,-361.0,0.00019294,2]
[388497464,1759217448907,-361.0,0.00019294,2]
[388497465,1759217448917,-153.0,0.00019294,2]
[388497466,1759217448928,-153.0,0.00019294,2]
[388497467,1759217448938,-153.0,0.00019294,2]
[388497468,1759217448948,-153.0,0.00019294,2]
[388497469,1759217448958,-153.0,0.00019294,2]
[388497470,1759217448969,-153.0,0.00019294,2]
[388497471,1759217448980,-153.0,0.00019294,2]
[388497472,1759217448990,-153.0,0.00019294,2]
[388497473,1759217449002,-153.0,0.00019294,2]
[388497474,1759217449014,-361.0,0.00019294,2]
[388497475,1759217449024,-361.0,0.00019294,2]
[388497476,1759217449034,-361.0,0.00019294,2]
[388497477,1759217449045,-361.0,0.00019294,2]
[388497478,1759217449055,-361.0,0.00019294,2]
[388497479,1759217449066,-361.0,0.00019294,2]
[388497480,1759217449076,-361.0,0.00019294,2]
[388497481,1759217449086,-361.0,0.00019294,2]
[388497482,1759217449096,-361.0,0.00019294,2]
[388497483,1759217449106,-361.0,0.00019294,2]
[388497484,1759217449116,-361.0,0.00019294,2]
[388497485,1759217449126,-361.0,0.00019294,2]
[388497486,1759217449140,-361.0,0.00019294,2]
[388497487,1759217449150,-361.0,0.00019294,2]
[388497488,1759217449161,-153.0,0.00019294,2]
[388497489,1759217449172,-153.0,0.00019294,2]
[388497490,1759217449182,-153.0,0.00019294,2]
[388497491,1759217449192,-153.0,0.00019294,2]
[388497492,1759217449202,-153.0,0.00019294,2]
[388497493,1759217449212,-153.0,0.00019294,2]
[388497494,1759217449222,-153.0,0.00019294,2]
[388497495,1759217449232,-153.0,0.00019294,2]
[388497496,1759217449242,-153.0,0.00019294,2]
[388497497,1759217449252,-361.0,0.00019294,2]
[388497498,1759217449262,-361.0,0.00019294,2]
[388497499,1759217449273,-361.0,0.00019294,2]
[388497500,1759217449283,-361.0,0.00019294,2]
[388497501,1759217449293,-361.0,0.00019294,2]
[388497502,1759217449303,-361.0,0.00019294,2]
[388497503,1759217449313,-361.0,0.00019294,2]
[388497504,1759217449323,-361.0,0.00019294,2]
[388497505,1759217449332,-361.0,0.00019294,2]
[388497506,1759217449342,-361.0,0.00019294,2]
[388497507,1759217449351,-153.0,0.00019294,2]
[388497508,1759217449364,-153.0,0.00019294,2]
[388497509,1759217449375,-153.0,0.00019294,2]
[388497510,1759217449386,-153.0,0.00019294,2]
[388497511,1759217449396,-361.56236917,0.00019311,2]
[388497512,1759217449408,-266.23188043,0.00019315,2]
[388497513,1759217449418,-168.0,0.00019347,2]
[388497514,1759217449428,-401.34555568,0.00019352,2]
[388497515,1759217449438,-401.34555568,0.00019411,2]
[388497516,1759217449449,-868.63,0.0001942,2]
[388497517,1759217449459,-164.39766775,0.00019425,2]
[388497518,1759217449469,-806.89,0.0001943,2]
[388497519,1759217449479,-150.0,0.00019452,2]
[388497520,1759217449490,-401.34555568,0.00019469,2]
[388497521,1759217449500,-273.5799973,0.00019485,2]
[388497522,1759217449509,-346531.77888028,0.000195,2]
[388497523,1759217449519,-2000.0,0.00019516,2]
[388497524,1759217449529,-2000.0,0.00019516,2]
[388497525,1759217449540,-2000.0,0.00019516,2]
[388497526,1759217449550,-1225.61573882,0.00019516,2]
[388497527,1759217449560,-2000.0,0.00019516,2]
[388497528,1759217449570,-2000.81562817,0.00019516,2]
[388497529,1759217449580,-2000.94098698,0.00019516,2]
[388497530,1759217449590,-2000.0,0.00019516,2]
[388497531,1759217449600,-2000.0,0.00019516,2]
[388497532,1759217449609,-1307.23411504,0.00019516,2]
[388497533,1759217449620,-500.0,0.00019517,2]
[388497534,1759217449630,-1818.0,0.00019517,2]
[388497535,1759217449640,-500.0,0.00019517,2]
[388497536,1759217449650,-199.57271068,0.00019521,2]
[388497537,1759217449661,-401.34555568,0.00019528,2]
[388497538,1759217449671,-200.0,0.00019577,2]
[388497539,1759217449681,-600.0,0.00019583,2]
[388497540,1759217449691,-401.34555568,0.00019587,2]
[388497541,1759217449701,-1067.26758,0.0001961,2]
[388497542,1759217449711,-2000.0,0.00019616,2]
[388497543,1759217449722,-2000.0,0.00019616,2]
[388497544,1759217449731,-716.78635046,0.00019616,2]
[388497545,1759217449742,-2000.0,0.00019616,2]
[388497546,1759217449752,-2000.0,0.00019616,2]
[388497547,1759217449762,-2000.0,0.00019616,2]
[388497548,1759217449772,-221.27,0.0001962,2]
[388497549,1759217449782,-401.34555567,0.00019646,2]
[388497550,1759217449792,-156.12,0.00019646,2]
[388497551,1759217449802,-361.56236917,0.00019655,2]
[388497552,1759217449824,-868.67249533,0.00019694,2]
[388497553,1759217449838,-401.34555567,0.00019705,2]
[388497554,1759217449849,-150.0,0.00019726,2]
[388497555,1759217449859,-645.27780785,0.00019726,2]
[388497556,1759217449869,-250.0,0.00019726,2]
[388497557,1759217449881,-250.0,0.00019726,2]
[388497558,1759217449891,-156.587,0.00019726,2]
[388497559,1759217449901,-346.92554585,0.0001973,2]
[388497560,1759217449911,-401.34555567,0.00019764,2]
[388497561,1759217449921,-429.0,0.00019791,2]
[388497562,1759217449932,-1818.0,0.00019791,2]
[388497563,1759217449942,-500.0,0.00019791,2]
[388497564,1759217449952,-592.703388,0.000198,2]
[388497565,1759217449962,-168.08669389,0.00019823,2]
[388497566,1759217449972,-401.34555567,0.00019823,2]
[388497567,1759217449983,-152.0,0.00019875,3]
[388497568,1759217449993,-22656.92,0.0001988,2]
[388497569,1759217450008,-401.34555567,0.00019882,2]
[388497570,1759217450019,-269518.97536583,0.000199,2]
[388497571,1759217450029,-1182.27885867,0.000199,2]
[388497572,1759217450039,-1914.27340835,0.000199,2]
[388497573,1759217450049,-210.1293016,0.000199,2]
[388497574,1759217450060,-273.5799973,0.000199,2]
[388497575,1759217450069,-587.0,0.00019908,2]
[388497576,1759217450083,-401.34555567,0.00019941,2]
[388497577,1759217450093,-14404.33355246,0.0001995,15]
[388497578,1759217450103,-16874.51839808,0.0002,2]
[388497579,1759217450114,-243.83237853,0.0002,2]
[388497580,1759217450124,-150.0,0.0002,2]
[388497581,1759217450134,-3950.0,0.0002,2]
[388497582,1759217450144,-1276.57635201,0.0002,2]
[388497583,1759217450154,-7272.6104658,0.0002,2]
[388497584,1759217450164,-2097.78896925,0.0002,3]
[388497585,1759217450174,-3154.27370065,0.0002,5]
[388497586,1759217450184,-150.0,0.0002,2]
[388497587,1759217450194,-1030.51542859,0.0002,2]
[388497588,1759217450204,-90761.23170952,0.0002,2]
[388497589,1759217450214,-150.0,0.0002,2]
[388497590,1759217450232,-150.0,0.0002,2]
[388497591,1759217450242,-150.0,0.0002,2]
[388497592,1759217450252,-150.0,0.0002,2]
[388497593,1759217450263,-150.0,0.0002,2]
[388497594,1759217450273,-150.0,0.0002,2]
[388497595,1759217450283,-150.0,0.0002,2]
[388497596,1759217450294,-150.0,0.0002,2]
[388497597,1759217450304,-150.0,0.0002,2]
[388497598,1759217450314,-150.0,0.0002,2]
[388497599,1759217450324,-150.0,0.0002,2]
[388497600,1759217450335,-150.0,0.0002,2]
[388497601,1759217450345,-150.0,0.0002,2]
[388497602,1759217450355,-202.54,0.0002,2]
[388497603,1759217450364,-150.0,0.0002,2]
[388497604,1759217450374,-150.0,0.0002,2]
[388497605,1759217450385,-150.0,0.0002,2]
[388497606,1759217450396,-150.0,0.0002,2]
[388497607,1759217450406,-150.0,0.0002,2]
[388497608,1759217450416,-150.0,0.0002,2]
[388497609,1759217450426,-150.0,0.0002,2]
[388497610,1759217450437,-150.0,0.0002,2]
[388497611,1759217450447,-150.0,0.0002,2]
[388497612,1759217450457,-150.0,0.0002,2]
[388497613,1759217450467,-150.0,0.0002,2]
[388497614,1759217450478,-150.0,0.0002,2]
[388497615,1759217450488,-150.0,0.0002,2]
[388497616,1759217450498,-150.0,0.0002,2]
[388497617,1759217450509,-150.0,0.0002,2]
[388497618,1759217450519,-150.0,0.0002,2]
[388497619,1759217450529,-150.0,0.0002,2]
[388497620,1759217450539,-150.0,0.0002,2]
[388497621,1759217450550,-150.0,0.0002,2]
[388497622,1759217450559,-150.0,0.0002,2]
[388497623,1759217450569,-150.0,0.0002,2]
[388497624,1759217450579,-150.0,0.0002,2]
[388497625,1759217450590,-150.0,0.0002,2]
[388497626,1759217450600,-150.0,0.0002,2]
[388497627,1759217450611,-150.0,0.0002,2]
[388497628,1759217450621,-150.0,0.0002,2]
[388497629,1759217450632,-150.0,0.0002,2]
[388497630,1759217450642,-150.0,0.0002,2]
[388497631,1759217450653,-150.0,0.0002,2]
[388497632,1759217450663,-150.0,0.0002,2]
[388497633,1759217450674,-150.0,0.0002,2]
[388497634,1759217450684,-150.0,0.0002,2]
[388497635,1759217450694,-150.0,0.0002,2]
[388497636,1759217450705,-150.0,0.0002,2]
[388497637,1759217450716,-1031.96559213,0.0002,15]
[388497638,1759217450726,-150.0,0.0002,2]
[388497639,1759217450736,-150.0,0.0002,2]
[388497640,1759217450747,-150.0,0.0002,2]
[388497641,1759217450758,-150.0,0.0002,2]
[388497642,1759217450768,-150.0,0.0002,2]
[388497643,1759217450780,-150.0,0.0002,2]
[388497644,1759217450790,-889.32,0.0002,10]
[388497645,1759217450801,-150.0,0.0002,2]
[388497646,1759217450810,-150.0,0.0002,2]
[388497647,1759217450820,-150.0,0.0002,2]
[388497648,1759217450830,-150.0,0.0002,2]
[388497649,1759217450840,-150.0,0.0002,2]
[388497650,1759217450851,-150.0,0.0002,2]
[388497651,1759217450861,-150.0,0.0002,2]
[388497652,1759217450871,-150.0,0.0002,2]
[388497653,1759217450882,-150.0,0.0002,2]
[388497654,1759217450892,-150.0,0.0002,2]
[388497655,1759217450902,-150.0,0.0002,2]
[388497656,1759217450912,-393.48645066,0.0002,2]
[388497657,1759217450922,-150.0,0.0002,2]
[388497658,1759217450932,-150.0,0.0002,2]
[388497659,1759217450943,-150.0,0.0002,2]
[388497660,1759217450954,-150.0,0.0002,2]
[388497661,1759217450965,-150.0,0.0002,2]
[388497662,1759217450976,-150.0,0.0002,2]
[388497663,1759217450987,-150.0,0.0002,2]
[388497664,1759217451000,-150.0,0.0002,2]
[388497665,1759217451012,-150.0,0.0002,2]
[388497666,1759217451022,-150.0,0.0002,2]
[388497667,1759217451032,-54106.0,0.0002,2]
[388497668,1759217451043,-150.0,0.0002,2]
[388497669,1759217451053,-150.0,0.0002,2]
[388497670,1759217451064,-150.0,0.0002,2]
[388497671,1759217451074,-150.0,0.0002,2]
[388497672,1759217451084,-150.0,0.0002,2]
[388497673,1759217451095,-150.0,0.0002,2]
[388497674,1759217451106,-63191.0,0.0002,7]
[388497675,1759217451116,-150.0,0.0002,2]
[388497676,1759217451126,-789.46371877,0.0002,7]
[388497677,1759217451136,-1800.0,0.0002,3]
[388497678,1759217451146,-150.0,0.0002,2]
[388497679,1759217451157,-150.0,0.0002,2]
[388497680,1759217451167,-150.0,0.0002,2]
[388497681,1759217451177,-150.0,0.0002,2]
[388497682,1759217451187,-150.0,0.0002,2]
[388497683,1759217451198,-150.0,0.0002,2]
[388497684,1759217451208,-160.78,0.0002,2]
[388497685,1759217451219,-150.0,0.0002,2]
[388497686,1759217451229,-150.0,0.0002,2]
[388497687,1759217451240,-150.0,0.0002,2]
[388497688,1759217451250,-150.0,0.0002,2]
[388497689,1759217451260,-211.234503,0.0002,2]
[388497690,1759217451270,-401.34555567,0.0002,2]
[388497691,1759217451280,-2000.0,0.0002,2]
[388497692,1759217451290,-2000.0,0.0002,2]
[388497693,1759217451301,-2035.03737402,0.0002,5]
[388497694,1759217451311,-4181.42839788,0.0002,2]
[388497695,1759217451321,-180.0,0.0002,2]
[388497696,1759217451333,-203.89705775,0.0002,2]
[388497697,1759217451342,-14439.76002732,0.0002,2]
[388497698,1759217451352,-238.20631776,0.0002,20]
[388497699,1759217451362,-163.0,0.0002,4]
[388497700,1759217451372,-10588222.36850962,0.0002,2]
[388497701,1759217453496,-28155.0,0.0002,2]
[388497702,1759217453510,-30226.54978139,0.0002,2]
[388497703,1759217453522,-2228.29999997,0.0002,2]
[388497704,1759217453534,-2907.72622407,0.0002,2]
[388497705,1759217453546,-1155.33286485,0.0002,2]
[388497706,1759217453558,-471.30833851,0.0002,2]
[388497707,1759217453570,-1900.0,0.0002,2]
[388497708,1759217453582,-310.054207,0.0002,2]
[388497709,1759217453595,-305.9999896,0.0002,2]
[388497710,1759217454296,-1475.77456972,0.0001778,2]
[388497711,1759217454308,-1006.11712991,0.00018917,2]
[388497712,1759217454319,-1379.13528129,0.0002,2]
[388497713,1759217454331,-5295.97844524,0.0002,2]
[388497714,1759217454343,-10560.1751446,0.0002,2]
[388497715,1759217454354,-8698.86999965,0.0002,2]
[388497716,1759217454367,-276.871998,0.0002,2]
[388497717,1759217456273,-217583.35323458,0.0002,2]
[388497718,1759217456285,-713.36953168,0.0002,2]
[388497719,1759217456296,-4208.9047,0.0002,2]
[388497720,1759217456308,-2265.54389497,0.0002,2]
[388497721,1759217456321,-13604.49060915,0.0002,2]
[388497722,1759217456333,-2015.1857978,0.0002,2]
[388497723,1759217456466,-554.996498,0.00017855,2]
[388497724,1759217456478,-48.003502,0.00017855,2]
[388497725,1759217456487,-974.58980007,0.00017869,2]
[388497726,1759217456496,-974.58980007,0.0001787,2]
[388497727,1759217456505,-974.58980007,0.00017914,2]
[388497728,1759217456514,-151.0,0.00017924,2]
[388497729,1759217456524,-151.0,0.00017973,2]
[388497730,1759217456533,-500.0,0.0001884,2]
[388497731,1759217456541,-409.44690565,0.0001884,2]
[388497732,1759217456558,-90.55309435,0.0001884,2]
[388497733,1759217456567,-500.0,0.0001884,2]
[388497734,1759217456576,-73.36346587,0.0001884,2]
[388497735,1759217456587,-426.63653413,0.0001884,2]
[388497736,1759217456596,-200.64338347,0.0001884,2]
[388497737,1759217456607,-299.35661653,0.0001884,2]
[388497738,1759217456616,-500.0,0.0001884,2]
[388497739,1759217456625,-500.0,0.0001884,2]
[388497740,1759217456634,-500.0,0.0001884,2]
[388497741,1759217456643,-500.0,0.0001884,2]
[388497742,1759217456652,-500.0,0.0001884,2]
[388497743,1759217456661,-500.0,0.0001884,2]
[388497744,1759217456676,-1006.11712991,0.00019163,2]
[388497745,1759217456685,-23104.48237841,0.0002,2]
[388497746,1759217456697,-1142.80780989,0.0002,2]
[388497747,1759217456708,-430.40000012,0.0002,2]
[388497748,1759217456719,-27489.6956999,0.0002,2]
[388497749,1759217456730,-313.76352795,0.0002,2]
[388497750,1759217456817,-442.45044115,0.0001768,2]
[388497751,1759217456827,-500.0,0.0001884,2]
[388497752,1759217456836,-72.71681991,0.0001884,2]
[388497753,1759217456847,-669.28318009,0.0001884,2]
[388497754,1759217456856,-500.0,0.0001884,2]
[388497755,1759217456866,-500.0,0.0001884,2]
[388497756,1759217456876,-500.0,0.0001884,2]
[388497757,1759217456885,-155.12030456,0.0001884,2]
[388497758,1759217456896,-344.87969544,0.0001884,2]
[388497759,1759217456906,-54722.75260987,0.0002,2]
[388497760,1759217456918,-530668.53845537,0.0002,2]
[388497761,1759217456929,-2399.43,0.0002,2]
[388497762,1759217456940,-8615.8,0.0002,2]
[388497763,1759217456952,-1489.005,0.0002,2]
[388497764,1759217456969,-442.66128081,0.0001884,2]
[388497770,1759217531406,500.0,0.00016552,2]
[388497785,1759217590168,589.3366871,0.00016613,2]
[388497786,1759217591501,-290.40724461,0.00016613,2]
[388497787,1759217593599,-157.95,0.00016613,2]
[388497996,1759218144684,150.0,0.00016409,2]
[388497999,1759218149098,184.21,0.00016409,2]
[388498000,1759218149397,155.42,8.204e-05,2]
[388498001,1759218149581,155.42,0.00016409,2]
[388498020,1759218196835,290.40724461,0.00016512,2]
[388498041,1759218252014,540.49,0.00016395,2]
[388498047,1759218286205,1222.39,0.00016354,2]
[388498054,1759218310351,-1200.0,0.00016612,2]
[388498055,1759218310374,-300.0,0.00016612,2]
[388498056,1759218310396,-232.56057771,0.00016612,2]
[388498057,1759218310419,-2000.0,0.00016612,2]
[388498058,1759218310443,-476.34942229,0.00016613,2]
[388498126,1759218456371,-238.14271976,0.00016604,2]
[388498149,1759218552738,1050.48,0.00016537,2]
[388498162,1759218615272,150.0,0.0001656,7]
[388498173,1759218632040,-101.62728024,0.00016604,2]
[388498175,1759218632050,-472.72729892,0.00016608,2]
[388498177,1759218632066,-1527.27270108,0.00016608,2]
[388498179,1759218632077,-300.0,0.00016612,2]
[388498181,1759218632087,-300.0,0.00016612,2]
[388498184,1759218632102,-1200.0,0.00016612,2]
[388498186,1759218632112,-485.956646,0.00016613,2]
[388498188,1759218632122,-119.77902692,0.00016613,2]
[388498190,1759218632141,-1880.22097308,0.00016613,2]
[388498191,1759218632151,-549.83369458,0.00016613,2]
[388498192,1759218632163,-473.43930542,0.00016613,2]
[388498193,1759218632172,-695.52065095,0.00016613,2]
[388498194,1759218632185,-1304.47934905,0.00016613,2]
[388498195,1759218632194,-726.006,0.00016613,2]
[388498196,1759218632204,-1000.0,0.00016613,2]
[388498197,1759218632214,-622.45,0.00016613,2]
[388498198,1759218632223,-930.67,0.00016613,2]
[388498199,1759218632233,-721.6,0.00016613,2]
[388498200,1759218632243,-2000.0,0.00016661,2]
[388498201,1759218632253,-609.92938689,0.00016661,2]
[388498202,1759218632263,-162.49,0.00016712,2]
[388498203,1759218632273,-192.0,0.00016763,2]
[388498204,1759218632283,-1000.0,0.00016825,2]
[388498205,1759218632293,-250.0,0.00016982,2]
[388498206,1759218632304,-10820.38,0.00016995,2]
[388498207,1759218632313,-500.0,0.00017042,2]
[388498208,1759218632323,-7112.29027948,0.00017153,2]
[388498209,1759218632333,-1999.6,0.00017218,2]
[388498210,1759218632342,-578.20924308,0.0001748,2]
[388498212,1759218632351,-231.28369723,0.0001748,2]
[388498214,1759218632361,-7965.41053268,0.0001748,2]
[388498215,1759218632370,-184.21,0.00017503,2]
[388498216,1759218632380,-200.0,0.00017528,2]
[388498217,1759218632390,-2817.2989724,0.00017535,2]
[388498218,1759218632402,-5442.83174999,0.00017535,2]
[388498219,1759218632414,-8565.75555911,0.0001759,2]
[388498221,1759218632424,-800.14276937,0.00017591,2]
[388498223,1759218632433,-929.64387985,0.00017599,2]
[388498225,1759218632443,-614.3356493,0.000176,2]
[388498227,1759218632453,-8882.6885148,0.00017645,2]
[388498228,1759218632463,-200.48926147,0.0001767,2]
[388498229,1759218632473,-500.0,0.0001767,2]
[388498230,1759218632483,-500.0,0.0001767,2]
[388498231,1759218632494,-518.91803187,0.0001767,2]
[388498232,1759218632504,-500.0,0.0001767,2]
[388498233,1759218632515,-340.00267743,0.0001767,2]
[388498234,1759218632525,-500.0,0.0001767,2]
[388498235,1759218632536,-500.0,0.0001767,2]
[388498236,1759218632546,-500.0,0.0001767,2]
[388498237,1759218632556,-500.0,0.0001767,2]
[388498238,1759218632566,-500.0,0.0001767,2]
[388498239,1759218632576,-500.0,0.0001767,2]
[388498240,1759218632586,-500.0,0.0001767,2]
[388498241,1759218632596,-500.0,0.0001767,2]
[388498242,1759218632606,-205.7825651,0.0001767,2]
[388498243,1759218632616,-390.044381,0.0001767,2]
[388498244,1759218632625,-500.0,0.00017671,2]
[388498245,1759218632635,-151.0,0.00017671,2]
[388498246,1759218632645,-500.0,0.00017671,2]
[388498247,1759218632655,-151.0,0.00017671,2]
[388498248,1759218632665,-151.0,0.00017671,2]
[388498249,1759218632674,-151.59794492,0.00017671,2]
[388498250,1759218632684,-500.0,0.00017671,2]
[388498251,1759218632694,-151.0,0.00017671,2]
[388498252,1759218632704,-500.0,0.00017671,2]
[388498253,1759218632714,-160.0,0.00017671,2]
[388498254,1759218632725,-151.0,0.00017671,2]
[388498255,1759218632735,-500.0,0.00017671,2]
[388498256,1759218632745,-151.0,0.00017671,2]
[388498257,1759218632754,-151.0,0.00017671,2]
[388498258,1759218632763,-151.0,0.00017671,2]
[388498259,1759218632774,-151.0,0.00017671,2]
[388498260,1759218632784,-1000.0,0.00017671,2]
[388498261,1759218632794,-151.0,0.00017671,2]
[388498262,1759218632804,-285.0462963,0.00017671,2]
[388498263,1759218632814,-500.0,0.00017671,2]
[388498264,1759218632823,-151.0,0.00017671,2]
[388498265,1759218632833,-151.0,0.00017671,2]
[388498266,1759218632843,-151.0,0.00017671,2]
[388498267,1759218632853,-151.0,0.00017671,2]
[388498268,1759218632862,-151.0,0.00017671,2]
[388498269,1759218632872,-151.0,0.00017671,2]
[388498270,1759218632882,-151.0,0.00017671,2]
[388498271,1759218632891,-151.0,0.00017671,2]
[388498272,1759218632901,-151.0,0.00017671,2]
[388498273,1759218632910,-200.0,0.00017671,2]
[388498274,1759218632919,-151.0,0.00017671,2]
[388498275,1759218632928,-169.00112002,0.00017671,2]
[388498276,1759218632937,-151.0,0.00017671,2]
[388498277,1759218632947,-151.0,0.00017671,2]
[388498278,1759218632956,-500.0,0.00017671,2]
[388498279,1759218632966,-151.0,0.00017671,2]
[388498280,1759218632975,-500.0,0.00017671,2]
[388498281,1759218632984,-500.0,0.00017671,2]
[388498282,1759218632994,-151.0,0.00017671,2]
[388498283,1759218633003,-500.0,0.00017671,2]
[388498284,1759218633013,-500.0,0.00017671,2]
[388498285,1759218633022,-151.0,0.00017671,2]
[388498286,1759218633031,-500.0,0.00017671,2]